[Event "2nd Cambridge Open 2024"]
[Site "Cambridge"]
[Date "2024.02.20"]
[Round "3.46"]
[White "Wheatley, Wilfred"]
[Black "Okhai, Shabir"]
[Result "1/2-1/2"]
[ECO "C45"]
[WhiteElo "1864"]
[BlackElo "2114"]
[Annotator "RC"]
[PlyCount "165"]
[EventDate "2024.02.18"]
[EventType "swiss"]
[EventCountry "ENG"]
[SourceTitle "playchess.com"]
[Source "ChessBase"]
[SourceQuality "1"]
[TimeControl "5400+30"]

1. e4 {[%emt 0:00:06]} e5 {[%emt 0:06:35]} 2. Nf3 {[%emt 0:01:10]} Nc6 {[%emt 0:00:09]} 3. d4 {[%emt 0:00:17]} exd4 {[%emt 0:00:05]} 4. Nxd4 {[%emt 0:00:08]} Bc5 {[%emt 0:00:03]} 5. Nxc6 {[%emt 0:00:15]} Qf6 {[%emt 0:00:37]} 6. Qf3 {[%emt 0:00:17]} bxc6 {[%emt 0:00:12]} 7. Nd2 {[%emt 0:00:28]} d6 {[%emt 0:01:16]} 8. Nb3 {[%emt 0:01:09]} Bb6 {[%emt 0:00:26]} 9. Bd2 {[%emt 0:01:05]} Qxf3 {[%emt 0:07:26]} 10. gxf3 {[%emt 0:00:06]} Ne7 {[%emt 0:00:43]} 11. a4 {[%emt 0:07:10]} a5 {[%emt 0:03:04]} 12. Bc3 {[%emt 0:05:11]} f6 {[%emt 0:02:34]} 13. Rg1 {[%emt 0:04:55]} Kf7 {[%emt 0:04:25]} 14. Bd3 {[%emt 0:08:37]} g6 {[%emt 0:04:49]} 15. h4 {[%emt 0:04:48]} Re8 {[%emt 0:05:07]} 16. Rg2 {[%emt 0:06:03]} Nd5 {[%emt 0:07:50]} 17. Bd2 {[%emt 0:07:16]} Nb4 {[%emt 0:03:03]} 18. O-O-O {[%emt 0:01:12]} Nxd3+ {[%emt 0:10:08]} 19. cxd3 {[%emt 0:00:05]} Be6 {[%emt 0:00:04]} 20. Kc2 {[%emt 0:10:01]} Reb8 {[%emt 0:00:36]} 21. Nc1 {[%emt 0:00:32]} Bd4 {[%emt 0:07:46]} 22. Bc3 {[%emt 0:00:35]} c5 {[%emt 0:02:08]} 23. h5 {[%emt 0:06:50]} Bxc3 {[%emt 0:02:58]} 24. hxg6+ {[%emt 0:03:05]} hxg6 {[%emt 0:00:08]} 25. Kxc3 {[%emt 0:00:10]} g5 {[%emt 0:07:23]} 26. f4 {[%emt 0:04:21]} gxf4 {[%emt 0:00:39]} 27. Rh1 {[%emt 0:02:20]} Rh8 {[%emt 0:01:28]} 28. Rgh2 {[%emt 0:02:35]} Rxh2 {[%emt 0:00:33]} 29. Rxh2 {[%emt 0:00:05]} Rg8 {[%emt 0:03:21]} 30. Rh7+ {[%emt 0:01:28]} Rg7 {[%emt 0:02:50]} 31. Rxg7+ {[%emt 0:00:18]} Kxg7 {[%emt 0:00:04]} 32. Ne2 {[%emt 0:01:53]} f3 {[%emt 0:00:54]} 33. Ng1 {[%emt 0:02:03]} Bg4 {[%emt 0:01:40]} 34. d4 {[%emt 0:03:21]} cxd4+ {[%emt 0:00:42]} 35. Kxd4 {[%emt 0:00:11]} Kf7 {[%emt 0:01:12]} 36. Ke3 {[%emt 0:07:20]} Bd7 {[%emt 0:02:02]} 37. Nxf3 {[%emt 0:00:32]} Bxa4 {[%emt 0:00:09]} 38. Nd2 {[%emt 0:02:30]} Bb5 {[%emt 0:03:58]} 39. f4 {[%emt 0:02:33]} Ke7 {[%emt 0:03:17]} 40. Kd4 {[%emt 0:01:03]} Kd7 {[%emt 0:01:51]} 41. e5 {[%emt 0:03:32]} Ke6 {[%emt 0:02:20]} 42. exd6 {[%emt 0:00:16]} cxd6 {[%emt 0:00:29]} 43. Ne4 {[%emt 0:01:34]} Bc6 {[%emt 0:00:54]} 44. Nc3 {[%emt 0:00:51]} Kf5 {[%emt 0:01:07]} 45. Ke3 {[%emt 0:00:08]} Kg4 {[%emt 0:01:04]} 46. Ne2 {[%emt 0:00:34]} a4 {[%emt 0:00:51]} 47. Nd4 {[%emt 0:00:07]} Bd7 {[%emt 0:00:12]} 48. Ne2 {[%emt 0:00:16]} Bb5 {[%emt 0:01:40]} 49. Nc3 {[%emt 0:00:09]} Bc6 {[%emt 0:00:21]} 50. Ne2 {[%emt 0:00:11]} Be8 {[%emt 0:00:26]} 51. Nc3 {[%emt 0:00:28]} Kf5 {[%emt 0:00:36]} 52. Ne2 {[%emt 0:00:38]} Ke6 {[%emt 0:00:11]} 53. Kd4 {[%emt 0:00:12]} Bc6 {[%emt 0:00:43]} 54. Nc3 {[%emt 0:00:15]} Kd7 {[%emt 0:00:10]} 55. Nd1 {[%emt 0:01:03]} Kc7 {[%emt 0:00:35]} 56. Ne3 {[%emt 0:00:24]} Bf3 {[%emt 0:00:59]} 57. Nc4 {[%emt 0:00:49]} Kc6 {[%emt 0:00:38]} 58. Nd2 {[%emt 0:00:57]} Bg2 {[%emt 0:00:33]} 59. Nc4 {[%emt 0:00:32]} d5 {[%emt 0:00:30]} 60. Ne3 {[%emt 0:01:33]} Bf3 {[%emt 0:00:07]} 61. Nf5 {[%emt 0:01:37]} Kb5 {[%emt 0:00:34]} 62. Kc3 {[%emt 0:00:07]} Kc5 {[%emt 0:00:25]} 63. Nd4 {[%emt 0:00:06]} Bg4 {[%emt 0:00:22]} 64. Nc2 {[%emt 0:00:08]} Bc8 {[%emt 0:01:05]} 65. Nd4 {[%emt 0:00:11]} Ba6 {[%emt 0:00:44]} 66. Ne6+ {[%emt 0:00:26]} Kd6 {[%emt 0:00:05]} 67. Nd4 {[%emt 0:00:20]} Bc8 {[%emt 0:00:30]} 68. Kb4 {[%emt 0:00:28]} Bd7 {[%emt 0:00:10]} 69. Kc3 {[%emt 0:00:03]} Kc5 {[%emt 0:00:27]} 70. Nc2 {[%emt 0:01:17]} Bg4 {[%emt 0:01:19]} 71. Nd4 {[%emt 0:00:15]} Bd1 {[%emt 0:00:15]} 72. Ne6+ {[%emt 0:00:10]} Kd6 {[%emt 0:00:19]} 73. Nd4 {[%emt 0:00:17]} Ke7 {[%emt 0:00:40]} 74. Kb4 {[%emt 0:00:39]} Kd6 {[%emt 0:00:15]} 75. Kc3 {[%emt 0:00:17]} Bg4 {[%emt 0:00:54]} 76. Kb4 {[%emt 0:00:40]} Bd7 {[%emt 0:00:01]} 77. Kc3 {[%emt 0:00:27]} Kc5 {[%emt 0:00:44]} 78. Nc2 {[%emt 0:00:07]} Bh3 {[%emt 0:01:06]} 79. Nd4 {[%emt 0:00:14]} Bf1 {[%emt 0:00:15]} 80. Ne6+ {[%emt 0:00:11]} Kd6 {[%emt 0:00:24]} 81. Nd4 {[%emt 0:00:10]} Kc5 {[%emt 0:00:39]} 82. Ne6+ {[%emt 0:00:09]} Kd6 {[%emt 0:00:16]} 83. Nd4 {[%emt 0:00:08]} 1/2-1/2

[Event "2nd Cambridge Open 2024"]
[Site "Cambridge"]
[Date "2024.02.21"]
[Round "4.2"]
[White "Sonis, Francesco"]
[Black "Hanley, Craig A"]
[Result "1-0"]
[ECO "B06"]
[WhiteElo "2573"]
[BlackElo "2431"]
[Annotator "TA"]
[PlyCount "78"]
[EventDate "2024.02.18"]
[EventType "swiss"]
[EventCountry "ENG"]
[SourceTitle "playchess.com"]
[Source "ChessBase"]
[SourceQuality "1"]
[TimeControl "5400+30"]

{[%evp 9,78,27,41,34,24,37,37,32,29,17,26,23,54,15,11,-3,121,121,141,122,131,126,125,120,151,135,141,142,147,139,131,128,127,127,169,170,162,178,146,109,159,155,164,160,177,161,159,132,152,135,182,45,45,0,0,16,26,37,81,44,58,11,67,69,66,99,132,123,158,127,153]} 1. Nf3 {[%emt 0:00:07]} g6 {[%emt 0:00:31]} 2. d4 {[%emt 0:03:57]} Bg7 {[%emt 0:00:14]} 3. e4 {[%emt 0:00:06]} d6 {[%emt 0:02:02]} 4. Nc3 {[%emt 0:00:35]} a6 {[%emt 0:00:54]} 5. a4 {[%emt 0:00:17]} Bg4 {[%emt 0:04:20]} 6. Be3 {[%emt 0:00:13]} e6 {[%emt 0:10:21]} 7. h3 {[%emt 0:05:14]} Bxf3 {[%emt 0:00:08]} 8. Qxf3 {[%emt 0:00:04] White is slightly better.} Nc6 {[%emt 0:01:50]} 9. Rd1 {[%emt 0:00:19]} Nb4 {[%emt 0:09:59]} 10. Rd2 {[%emt 0:01:20]} Qe7 {[%emt 0:03:19]} 11. Nd1 {[%emt 0:06:44]} d5 {[%emt 0:01:54]} 12. exd5 {[%emt 0:38:07]} O-O-O {[%emt 0:05:30]} (12... Nxd5 $11 {keeps the balance.} 13. c3 Qd7) 13. dxe6 $16 {[%emt 0:02:44]} fxe6 {[%emt 0:05:47]} 14. c3 {[%emt 0:00:09]} Nd5 {[%emt 0:00:15]} 15. Bc4 {[%emt 0:00:25]} Qd7 {[%emt 0:03:47]} 16. Bb3 {[%emt 0:06:38]} Nge7 {[%emt 0:02:10]} 17. O-O {[%emt 0:00:41]} Rhf8 {[%emt 0:02:17]} 18. Qe4 {[%emt 0:00:13]} Nf5 {[%emt 0:01:29]} 19. Re2 {[%emt 0:04:53]} Rde8 {[%emt 0:03:19]} 20. Bd2 {[%emt 0:01:15][%cal Be3d2,Bd2f4,Bf4e5][%mdl 32]} c6 {[%emt 0:07:54]} 21. Rfe1 {[%emt 0:00:29]} Kb8 {[%emt 0:07:22]} 22. Qd3 {[%emt 0:03:13]} Bf6 {[%emt 0:05:08]} 23. Bc2 {[%emt 0:01:18]} Bd8 {[%emt 0:01:54]} 24. Re4 {[%emt 0:07:15]} Nf6 {[%emt 0:09:02]} ({Better is} 24... Nd6) 25. Bf4+ {[%emt 0:00:19]} Ka7 {[%emt 0:01:10]} 26. R4e2 {[%emt 0:01:12]} Nd5 {[%emt 0:00:34]} 27. Be5 {[%emt 0:00:24]} g5 {[%emt 0:03:00]} 28. Qd2 {[%emt 0:00:44] Wards off Nf4} Nh4 {[%emt 0:00:50]} 29. Be4 {[%emt 0:01:19] A strong pair of Bishops.} h5 {[%emt 0:02:09]} (29... Nf4 $16 {was called for.} 30. Ne3 Nxe2+ 31. Qxe2 (31. Rxe2 Rg8 $16) 31... Bc7) 30. Qd3 {[%emt 0:07:20]} (30. Ne3 $18) 30... Nf4 $14 {[%emt 0:01:57]} 31. Bxf4 {[%emt 0:00:09]} (31. Qc4 {is more complex.} Nxe2+ 32. Qxe2 g4 33. hxg4 hxg4 34. Ne3) 31... gxf4 {[%emt 0:00:08]} 32. Bf3 $1 {[%emt 0:00:24]} Rf5 {[%emt 0:00:56]} 33. Re5 $36 {[%emt 0:00:52][%mdl 2048] White is pushing.} Rg8 {[%emt 0:00:50]} 34. Rxf5 {[%emt 0:00:16]} (34. Bxh5 Nxg2 (34... Rxg2+ 35. Kh1 $17) 35. Bg4 Nxe1 36. Rxe1 Rfg5 $17) 34... exf5 {[%emt 0:01:06]} 35. Kh1 {[%emt 0:00:16]} (35. Bxh5 $2 Qd5 (35... Rxg2+ $2 36. Kf1 $19) 36. Kf1 Qxg2+ (36... Rxg2 37. Ke2 $11) 37. Ke2 f3+ 38. Kd2 Qg5+ (38... Qxh3 39. Qc4 $11) 39. Kc2 Qxh5 $19) (35. Qe2 $14 {is more appropriate.}) 35... Bc7 {[%emt 0:00:48]} (35... c5 $1 $11) 36. b4 {[%emt 0:01:02]} ({Don't play} 36. Bxh5 Rxg2 37. d5 Rg8 $17 (37... cxd5 38. Qd4+ b6 39. Qf6 $11)) 36... Qd6 {[%emt 0:00:52][%cal Og8g2]} 37. Rg1 {[%emt 0:01:27]} (37. Bxh5 $2 {loses.} f3 (37... Nxg2 $2 38. Re5 $19) (37... Rxg2 38. Bf3 $11) 38. g3 (38. gxf3 $2 Qh2#) 38... Rxg3 39. fxg3 Qxg3 $19) 37... Re8 {[%emt 0:01:35][%cal Oe8e3]} 38. Bxh5 {[%emt 0:00:57]} Re7 {[%emt 0:01:28][%cal Of4f3] [#]} 39. Bf3 $1 {[%emt 0:00:38]} Qg6 {[%emt 0:01:11] Weighted Error Value: White=0.16 (very precise) /Black=0.19 (very precise) .  Mistake:       	White=2     	Black=4      Inaccurate:     	White=3     	Black=4      OK:         	White=15    	Black=10     Best:        	White=1     	Black=2      Strong:       	White=2     	---} 1-0

[Event "2nd Cambridge Open 2024"]
[Site "Cambridge"]
[Date "2024.02.21"]
[Round "4.3"]
[White "Tiviakov, Sergei"]
[Black "Woltery, Nicolai"]
[Result "1-0"]
[ECO "B22"]
[WhiteElo "2537"]
[BlackElo "1979"]
[Annotator "TA"]
[PlyCount "97"]
[EventDate "2024.02.18"]
[EventType "swiss"]
[EventCountry "ENG"]
[SourceTitle "playchess.com"]
[Source "ChessBase"]
[SourceQuality "1"]
[TimeControl "5400+30"]

{[%evp 16,97,17,14,16,35,45,0,0,-7,-8,-24,-27,-25,-41,-26,-35,-31,35,25,16,40,26,16,25,8,88,80,82,62,74,50,66,50,55,56,41,39,90,46,64,43,110,34,48,27,25,36,29,0,0,0,110,116,164,148,156,154,145,157,226,230,282,257,455,449,466,512,519,481,1015,963,4132,1050,4132,4132,5011,4727,4682,4670,29989,29990,29990,29991]} 1. e4 {[%emt 0:00:02]} c5 {[%emt 0:02:01]} 2. c3 {[%emt 0:00:13]} Nf6 {[%emt 0:00:08]} 3. e5 {[%emt 0:00:05]} Nd5 {[%emt 0:00:03]} 4. Nf3 {[%emt 0:00:06]} Nc6 {[%emt 0:00:06]} 5. Bc4 {[%emt 0:00:07][%cal Bf1c4,Bc4b3,Bb3c2][%mdl 32]} Nb6 {[%emt 0:00:13]} 6. Bb3 {[%emt 0:00:07]} c4 {[%emt 0:00:11]} 7. Bc2 {[%emt 0:00:08]} d6 {[%emt 0:00:07]} 8. exd6 {[%emt 0:00:07]} Qxd6 {[%emt 0:00:05]} 9. O-O {[%emt 0:00:07]} Bg4 {[%emt 0:00:07]} 10. Re1 {[%emt 0:00:07] Prevents Ne5.} O-O-O {[%emt 0:02:22]} 11. b3 {[%emt 0:02:30]} Qf6 $1 {[%emt 0:11:48] The position is equal.} 12. Na3 {[%emt 0:13:23]} Nd5 {[%emt 0:10:40][%cal Od5c3] Strongly threatening ...Nxc3!} 13. Qe2 {[%emt 0:00:26]} Bxf3 {[%emt 0:00:39]} 14. Qxf3 {[%emt 0:00:20]} Qxf3 {[%emt 0:00:09]} 15. gxf3 {[%emt 0:00:02]} cxb3 {[%emt 0:03:21]} 16. axb3 {[%emt 0:00:05]} e5 {[%emt 0:12:56]} ({Black should try} 16... e6 $15) 17. b4 $14 {[%emt 0:04:28]} f6 {[%emt 0:04:33]} 18. Nc4 {[%emt 0:08:51]} Kb8 {[%emt 0:01:20]} 19. Be4 {[%emt 0:13:06][%cal Of3f4]} Nce7 {[%emt 0:04:23]} 20. Na5 {[%emt 0:02:30] Black should prevent c4.} f5 {[%emt 0:17:42]} (20... b6 $11 {keeps the balance.}) 21. Bc2 $16 {[%emt 0:02:46][%cal Oa5c4]} g6 {[%emt 0:01:28]} (21... b6 $2 22. Nc4 $16) 22. Rxe5 {[%emt 0:00:12]} Bg7 {[%emt 0:01:33]} 23. Re1 {[%emt 0:00:27]} Nc8 {[%emt 0:01:13]} 24. b5 {[%emt 0:15:12]} (24. Bb3 $5) 24... Rhe8 {[%emt 0:04:06]} 25. Rxe8 {[%emt 0:00:45]} Rxe8 {[%emt 0:00:01]} 26. Kf1 {[%emt 0:00:19] Inhibits Re1+.} Be5 {[%emt 0:03:38]} (26... Nd6 $14) 27. h3 {[%emt 0:00:14]} Bf6 {[%emt 0:02:53]} 28. Nc4 $36 {[%emt 0:02:27][%mdl 2048] White is more active.} Bd8 {[%emt 0:03:21]} (28... Rd8 $14) 29. Ra3 {[%emt 0:08:13]} ({Better is} 29. Ba4 $16) 29... Bg5 $14 {[%emt 0:01:12]} 30. Ne3 {[%emt 0:03:43]} Nf4 {[%emt 0:00:56]} 31. c4 {[%emt 0:00:32]} Nxh3 {[%emt 0:01:24]} 32. c5 {[%emt 0:00:18]} Nf4 {[%emt 0:01:04]} 33. Bb2 {[%emt 0:00:42]} h5 {[%emt 0:02:57]} (33... b6 $11) 34. Nc4 $16 {[%emt 0:00:42] Black is on the road to losing.} h4 {[%emt 0:00:40]} (34... Ka8 $16 {keeps fighting.}) 35. Be5+ $18 {[%emt 0:00:37]} Ka8 {[%emt 0:00:06]} 36. d4 {[%emt 0:00:44][%cal Bd2d4,Bd4e5,Be5e6][%mdl 32] White is more active.} h3 {[%emt 0:00:21] And now ...h2 would win.} 37. Kg1 {[%emt 0:00:04]} Nd5 {[%emt 0:02:17]} (37... Ne2+ $16 {was called for.} 38. Kh2 Bf4+ 39. Kxh3 Bxe5 40. dxe5 Rh8+ 41. Kg2 Nf4+ 42. Kg1 Ne2+ 43. Kf1 Nd4) 38. b6 {[%emt 0:02:09]} Bf4 {[%emt 0:01:20]} 39. Nd6 {[%emt 0:06:43]} Nxd6 {[%emt 0:01:27]} (39... Bxe5 {is a better defense.} 40. dxe5 (40. Nxe8 Bxd4 41. Kh2 Nb4 $16) 40... Rd8 41. bxa7 Nxa7) 40. cxd6 {[%emt 0:00:04][%cal Bc5d6,Bd6d7][%mdl 32]} ({But not} 40. Rxa7+ Kb8 $18) 40... Bxe5 {[%emt 0:01:56]} 41. dxe5 {[%emt 0:00:06]} Nxb6 {[%emt 0:01:59][%mdl 4096] Endgame. KRB-KRN} 42. f4 {[%emt 0:00:01]} Nd5 {[%emt 0:02:01]} (42... Kb8 $142 43. Bb3 (43. Rxh3 Rd8 $18) 43... Nc8) 43. Bb3 {[%emt 0:02:31]} Nxf4 {[%emt 0:00:21]} 44. d7 {[%emt 0:00:03]} Rh8 {[%emt 0:00:10]} 45. e6 {[%emt 0:00:06] Threatening mate with e7.} h2+ {[%emt 0:00:24]} 46. Kh1 {[%emt 0:00:04] White threatens e7 and mate.} Nd3 {[%emt 0:00:21]} 47. Ra2 {[%emt 0:00:06] e7 would kill now.} Nc5 {[%emt 0:00:30] [#]} 48. Rc2 $1 {[%emt 0:00:07]} b6 {[%emt 0:00:18] [#]} 49. Rxc5 $1 {[%emt 0:00:06][%mdl 512] Weighted Error Value: White=0.11 (very precise) /Black=0.39.  Mistake:       	White=1     	Black=9      Inaccurate:     	White=3     	Black=1      OK:         	White=13    	Black=10     Best:        	White=3     	Black=2      Strong:       	---       	Black=1} 1-0

[Event "2nd Cambridge Open 2024"]
[Site "Cambridge"]
[Date "2024.02.21"]
[Round "4.4"]
[White "Turner, Matthew J"]
[Black "Adams, Michael"]
[Result "1/2-1/2"]
[ECO "E16"]
[WhiteElo "2448"]
[BlackElo "2674"]
[Annotator "TA"]
[PlyCount "80"]
[EventDate "2024.02.18"]
[EventType "swiss"]
[EventCountry "ENG"]
[SourceTitle "playchess.com"]
[Source "ChessBase"]
[SourceQuality "1"]
[TimeControl "5400+30"]

{[%evp 13,80,14,18,16,14,18,14,0,15,9,9,10,9,24,25,21,22,36,29,19,28,2,31,0,0,0,0,-27,-25,-42,0,0,0,0,0,0,0,0,0,0,0,0,0,0,-1,0,0,0,0,0,0,0,0,0,0,0,0,-7,-7,-11,-10,-10,-6,-8,-10,-14,-8,-50,-50]} 1. d4 {[%emt 0:00:07]} Nf6 {[%emt 0:00:09]} 2. c4 {[%emt 0:00:25]} e6 {[%emt 0:00:08]} 3. g3 {[%emt 0:00:48]} d5 {[%emt 0:01:21]} 4. Bg2 {[%emt 0:01:04]} Bb4+ {[%emt 0:00:08]} 5. Nd2 {[%emt 0:01:50]} O-O {[%emt 0:00:11]} 6. Ngf3 {[%emt 0:00:42]} b6 {[%emt 0:00:14]} 7. O-O {[%emt 0:00:54]} Bb7 {[%emt 0:00:05]} 8. b3 {[%emt 0:00:40]} a5 {[%emt 0:00:11][%cal Ba7a5,Ba5a4,Ba4a3][%mdl 32]} 9. Bb2 {[%emt 0:02:56]} a4 {[%emt 0:00:24]} 10. Rc1 {[%emt 0:04:42] The position is equal.} a3 {[%emt 0:12:30]} 11. Ba1 {[%emt 0:01:13]} Na6 {[%emt 0:00:32]} 12. Ne5 {[%emt 0:02:57]} Bd6 {[%emt 0:08:33]} 13. Nd3 {[%emt 0:00:53]} Qe7 {[%emt 0:03:03]} 14. e3 {[%emt 0:02:23]} Nb4 {[%emt 0:01:08]} 15. Nxb4 {[%emt 0:01:24]} Bxb4 {[%emt 0:00:02]} 16. Qc2 {[%emt 0:02:16]} c5 {[%emt 0:01:47]} 17. dxc5 {[%emt 0:02:24]} Bxc5 {[%emt 0:02:09]} 18. Rfd1 {[%emt 0:05:02]} Rac8 {[%emt 0:01:31]} 19. Qb1 {[%emt 0:01:52]} Rfd8 {[%emt 0:04:44]} 20. cxd5 {[%emt 0:03:03]} Nxd5 {[%emt 0:00:37]} 21. Ne4 {[%emt 0:04:21]} Nxe3 {[%emt 0:17:56]} 22. Rxd8+ {[%emt 0:02:54]} Rxd8 {[%emt 0:00:23]} 23. Nxc5 {[%emt 0:06:50]} Bxg2 {[%emt 0:02:38]} 24. fxe3 {[%emt 0:00:23]} Ba8 {[%emt 0:01:00]} 25. Ne4 {[%emt 0:02:02] [#] Prevents Qg5. Nf2 would now be deadly.} f5 {[%emt 0:06:51]} 26. Nf2 {[%emt 0:07:56] Black must now prevent Be5.} Qb7 {[%emt 0:00:23]} 27. e4 $1 {[%emt 0:00:20]} fxe4 {[%emt 0:00:39]} 28. Qxe4 {[%emt 0:01:26]} Qxe4 {[%emt 0:00:09]} 29. Nxe4 {[%emt 0:00:03]} Bxe4 $11 {[%emt 0:00:07][%mdl 4096] Endgame. KRB-KRB} 30. Kf2 {[%emt 0:01:19]} Bf5 {[%emt 0:05:10]} 31. Ke3 {[%emt 0:01:15] Inhibits Rd2.} Rd3+ {[%emt 0:02:16]} 32. Ke2 {[%emt 0:02:11]} Rd7 {[%emt 0:00:05]} 33. Ke3 {[%emt 0:00:41]} Kf7 {[%emt 0:01:53]} ({Don't do} 33... Rd3+ 34. Ke2 $17) 34. Bd4 {[%emt 0:04:42]} b5 {[%emt 0:01:56]} 35. Rc5 {[%emt 0:01:08]} Rb7 {[%emt 0:04:50]} 36. b4 {[%emt 0:03:03]} Bb1 {[%emt 0:07:36]} 37. Rc3 {[%emt 0:00:32]} e5 {[%emt 0:00:20]} 38. Bc5 {[%emt 0:02:02]} Bxa2 {[%emt 0:02:49]} 39. Rxa3 {[%emt 0:00:06]} Bd5 {[%emt 0:00:06]} 40. Ra7 {[%emt 0:00:23]} Rxa7 {[%emt 0:00:06] Weighted Error Value: White=0.06 (flawless) /Black=0.03 (flawless) .  Inaccurate:     	White=4     	Black=2      OK:         	White=15    	Black=10     Best:        	White=3     	Black=3      Strong:       	White=1     	---} 1/2-1/2

[Event "2nd Cambridge Open 2024"]
[Site "Cambridge"]
[Date "2024.02.21"]
[Round "4.5"]
[White "Ghasi, Ameet K"]
[Black "Wachinger, Nikolas"]
[Result "0-1"]
[ECO "E04"]
[WhiteElo "2509"]
[BlackElo "2437"]
[Annotator "TA"]
[PlyCount "146"]
[EventDate "2024.02.18"]
[EventType "swiss"]
[EventCountry "ENG"]
[SourceTitle "playchess.com"]
[Source "ChessBase"]
[SourceQuality "1"]
[TimeControl "5400+30"]

{[%evp 61,146,-48,-46,-50,-47,-53,-54,-50,-50,-50,-43,-75,-74,-70,-53,-90,-86,-105,-109,-96,-100,-181,-187,-172,-80,-68,0,-141,-89,-87,-22,-166,-161,-160,-110,-112,-108,-106,-108,-110,-106,-112,-92,-94,-92,-92,-92,-94,-93,-128,-118,-135,-92,-100,-91,-328,-327,-357,-347,-674,-641,-562,-534,-489,-448,-505,-488,-437,-435,-456,-427,-376,-293,-678,-622,-636,-714,-1420,-1247,-29973,-29972,-4822,-1255,-6248,-6211,-2230,-1135]} 1. Nf3 {[%emt 0:01:32]} d5 {[%emt 0:02:14]} 2. g3 {[%emt 0:00:47]} Nf6 {[%emt 0:00:17]} 3. Bg2 {[%emt 0:00:07]} c5 {[%emt 0:00:11]} 4. O-O {[%emt 0:00:29]} Nc6 {[%emt 0:00:10]} 5. d4 {[%emt 0:00:21]} e6 {[%emt 0:00:10]} 6. c4 {[%emt 0:00:25]} dxc4 {[%emt 0:00:15]} 7. dxc5 {[%emt 0:02:40]} Qxd1 {[%emt 0:00:09]} 8. Rxd1 {[%emt 0:00:03]} Bxc5 {[%emt 0:00:12]} 9. Nbd2 {[%emt 0:00:01]} c3 {[%emt 0:00:25]} 10. bxc3 {[%emt 0:00:22]} O-O {[%emt 0:00:09]} 11. Nb3 {[%emt 0:00:57]} Be7 {[%emt 0:00:09]} 12. c4 {[%emt 0:03:30]} Bd7 {[%emt 0:00:28]} 13. Bb2 {[%emt 0:03:12]} Rfd8 {[%emt 0:04:27]} 14. Nfd4 {[%emt 0:01:22]} Rac8 {[%emt 0:00:09]} 15. Nb5 {[%emt 0:02:09]} b6 {[%emt 0:00:26]} 16. Nd6 {[%emt 0:02:58]} Rc7 {[%emt 0:00:10]} 17. Nb5 {[%emt 0:01:21]} Rcc8 {[%emt 0:00:07]} 18. Nd6 {[%emt 0:00:59]} Rc7 {[%emt 0:00:06]} 19. Rd2 {[%emt 0:18:48]} Be8 {[%emt 0:54:33]} 20. Rad1 {[%emt 0:11:44]} Nb4 {[%emt 0:04:22]} 21. Nxe8 {[%emt 0:09:10]} Rxe8 {[%emt 0:00:33]} 22. a3 {[%emt 0:00:24]} Nc6 {[%emt 0:04:01]} 23. e3 {[%emt 0:07:12]} Kf8 {[%emt 0:01:24]} 24. h3 {[%emt 0:04:20]} Rd8 {[%emt 0:02:46]} 25. Rxd8+ {[%emt 0:07:10]} Nxd8 {[%emt 0:02:53]} 26. Rc1 {[%emt 0:02:03]} Nd7 {[%emt 0:00:48]} 27. Nd4 {[%emt 0:00:06]} Nc5 {[%emt 0:00:12]} 28. Bf1 {[%emt 0:03:15]} Nc6 {[%emt 0:04:59]} 29. Nxc6 {[%emt 0:02:06]} Rxc6 {[%emt 0:01:58]} 30. Rc2 {[%emt 0:00:07]} Bf6 {[%emt 0:01:47]} 31. Bxf6 {[%emt 0:02:41]} gxf6 {[%emt 0:00:03]} 32. Kg2 {[%emt 0:00:44]} Rd6 {[%emt 0:01:11]} 33. Be2 {[%emt 0:00:02]} f5 {[%emt 0:00:47]} 34. g4 {[%emt 0:04:33]} Kg7 {[%emt 0:00:17]} 35. gxf5 {[%emt 0:02:47]} exf5 {[%emt 0:00:02]} 36. Kf3 {[%emt 0:00:07]} Kf6 {[%emt 0:00:53]} 37. Rb2 {[%emt 0:00:33]} Ne4 {[%emt 0:00:58]} 38. a4 {[%emt 0:02:08]} a5 {[%emt 0:01:53]} 39. Rc2 {[%emt 0:03:41]} Nc5 {[%emt 0:00:34]} 40. Ra2 {[%emt 0:00:01]} Ke5 {[%emt 0:00:21]} 41. Kg3 {[%emt 0:01:26]} (41. h4 $17) 41... Ne4+ $1 $19 {[%emt 0:01:19]} 42. Kf3 {[%emt 0:00:02]} Nd2+ {[%emt 0:02:58]} (42... Rd2 $19 {and Black stays clearly on top.} 43. Rxd2 Nxd2+ 44. Kg2 Ne4) 43. Kg3 $17 {[%emt 0:00:53]} Ne4+ {[%emt 0:03:51]} (43... Rg6+ $15 44. Kh2 Rd6) 44. Kf3 $17 {[%emt 0:00:04]} Rh6 {[%emt 0:02:26]} (44... Rd2 $142 45. Rxd2 Nxd2+ 46. Kg2 f4) 45. Bf1 $17 {[%emt 0:01:40]} Rg6 {[%emt 0:00:04]} (45... Nc5 $17) 46. Rb2 {[%emt 0:00:30] [#]} (46. Bd3 $1 $11 {and White has nothing to worry.}) 46... Nc3 $1 $19 {[%emt 0:01:29]} 47. Bd3 {[%emt 0:01:55]} Nxa4 {[%emt 0:00:09]} (47... Rd6 $142 48. Bb1 Rd1 (48... Nxa4 49. Rb5+ Nc5 50. Bc2 $17)) 48. Rb5+ $17 {[%emt 0:00:06]} Nc5 {[%emt 0:00:06]} 49. Ke2 {[%emt 0:00:12]} Rd6 {[%emt 0:01:34]} 50. f4+ {[%emt 0:00:06]} Kf6 {[%emt 0:00:52]} 51. Bc2 {[%emt 0:00:02]} Kg6 {[%emt 0:01:00]} 52. Kf3 {[%emt 0:00:20]} h6 {[%emt 0:01:06]} 53. Rb2 {[%emt 0:01:38]} Kf6 {[%emt 0:00:40]} 54. Rb1 {[%emt 0:00:30]} Rc6 {[%emt 0:00:44]} 55. Ke2 {[%emt 0:01:05]} Ke6 {[%emt 0:00:59]} 56. Rb2 {[%emt 0:00:20]} f6 {[%emt 0:00:56]} 57. Kf3 {[%emt 0:00:41] [#]} Ne4 $1 {[%emt 0:00:18]} 58. Ba4 $2 {[%emt 0:00:22]} (58. Bd3 $17 {was necessary.}) 58... Rd6 $19 {[%emt 0:00:14]} ({Not} 58... Rxc4 59. Bb3 Kd5 60. Rc2 $11 (60. Bxc4+ Kxc4 61. Rxb6 a4 $11)) 59. Bc2 {[%emt 0:00:39]} Nd2+ {[%emt 0:00:26]} 60. Ke2 $2 {[%emt 0:00:01]} (60. Kg3 Nxc4 61. Rb3) 60... Nxc4 $19 {[%emt 0:00:41]} 61. Bb3 {[%emt 0:00:02]} b5 {[%emt 0:00:08]} 62. Ba2 {[%emt 0:00:40]} Rd5 {[%emt 0:01:08]} 63. Rc2 {[%emt 0:00:15]} Rc5 {[%emt 0:00:10]} 64. Kd3 {[%emt 0:00:06]} Kd6 {[%emt 0:00:21]} 65. Rg2 {[%emt 0:00:18]} Rd5+ {[%emt 0:00:38]} 66. Kc3 {[%emt 0:00:01]} Rd1 {[%emt 0:00:51]} 67. Rg6 $2 {[%emt 0:01:18]} (67. Bxc4 Rc1+ (67... bxc4 68. Kxc4 Rc1+ 69. Kd3 $17) 68. Kb2 Rxc4 69. Rg6) 67... Nxe3 $19 {[%emt 0:00:07]} 68. Rxf6+ {[%emt 0:00:05]} Kc5 {[%emt 0:00:03]} 69. Re6 {[%emt 0:00:33]} b4+ {[%emt 0:00:16]} 70. Kb3 {[%emt 0:00:28]} Rd3+ {[%emt 0:00:20]} 71. Kb2 {[%emt 0:00:04]} Nc4+ {[%emt 0:01:13]} (71... a4 $142 72. Ka1 Nc2+ 73. Kb2 b3 74. Bxb3 axb3) 72. Kc2 {[%emt 0:00:12]} Rd2+ {[%emt 0:00:23]} 73. Kb1 {[%emt 0:00:05]} b3 {[%emt 0:00:12]} 0-1